Cogmind - Beta 12 @@@ ROGUE MODE // 2023.07.28 @ 22:46:30 Player: Heclapar Result: Self-destructed Performance ------------- Evolutions (4) 2000 Regions Visited (7) 1400 Robots Destroyed (58) 290 Value Destroyed (1825) 1825 Prototype IDs (29) 580 Alien Tech Used (0) 0 Bonus (681) 681 TOTAL SCORE: 6776 Bonus ------- Pacifist 270 High Alert Combat Kills 74 Follower Combat Kills 37 Aligned with FarCom 300 Cogmind --------- Core Integrity 807/850 Matter 222/300 Energy 283/290 System Corruption 0% Temperature Cool (0) Movement Rolling (145) Ox3 Location -6/Factory Parts ------- > --- POWER (2) -------- Reinforced Deuterium Engine > --- PROPULSION (3) --- Armored Huge Wheel > --- UTILITY (6) ------ Improved Heat Sink Advanced Heat Sink Advanced Heat Sink High-capacity Storage Unit Advanced Signal Interpreter Improved Medium Armor Plating > --- WEAPON (4) ------- High-powered Shock Rifle Advanced Beam Cannon Heavy Particle Cannon Advanced Assault Cannon > --- INVENTORY (20) --- Reinforced Deuterium Engine Enhanced Nuclear Core Enhanced Nuclear Core Light Treads Advanced Treads Wheel Improved Heat Sink High-capacity Storage Unit Improved Terrain Scan Processor Core Analyzer Weapon Cycler Advanced ECM Suite Cloak of Protection Improved Medium Armor Plating High-powered Tractor Beam High-powered Shock Rifle High-powered Shock Rifle Improved Grenade Launcher Rocket Array Peak State ------------ > --- POWER ------------ Reinforced Deuterium Engine Enhanced Nuclear Core > --- PROPULSION ------- Wheel Armored Huge Wheel > --- UTILITY ---------- Improved Heat Sink Advanced Heat Sink Advanced Heat Sink High-capacity Storage Unit Cloak of Protection Improved Medium Armor Plating > --- WEAPON ----------- Advanced Beam Cannon Heavy Particle Cannon Autogun Advanced Assault Cannon > --- INVENTORY -------- Reinforced Deuterium Engine Enhanced Nuclear Core Enhanced Nuclear Core Advanced Treads Wheel Improved Heat Sink High-capacity Storage Unit Advanced Signal Interpreter Improved Terrain Scan Processor Core Analyzer Weapon Cycler Advanced ECM Suite Improved Medium Armor Plating Improved Medium Armor Plating High-powered Tractor Beam High-powered Shock Rifle High-powered Shock Rifle High-powered Shock Rifle Improved Grenade Launcher [Rating: 63] Favorites ----------- Power Deuterium Engine Engine Deuterium Engine Power Core Light Nuclear Core Propulsion Light Treads Treads Light Treads Leg Aluminum Leg Wheel Wheel Utility Advanced Heat Sink Device Advanced Heat Sink Storage High-capacity Storage Unit Processor Improved Signal Interpreter Protection Improved Medium Armor Plating Weapon Light Assault Rifle Energy Gun Particle Gun Energy Cannon Heavy Particle Cannon Ballistic Gun Light Assault Rifle Ballistic Cannon Advanced Assault Cannon Launcher Precision Grenade Launcher Build | -11 -10 -10 -10 -9 -8 -7 -6 ------- Run | Jun Mat Min Exi Min Mat Fac Fac Slots Evolved 8 | . . . . . 4 2 2 Power 1 | . . . . . . 1 . Propulsion 1 | . . . . . . 1 . Utility 4 | . . . . . 2 . 2 Weapon 2 | . . . . . 2 . . Parts Attached 63 | . 2 . . . 16 38 7 Power 6 | . . . . . 2 4 . Engine 3 | . . . . . 2 1 . Core 3 | . . . . . . 3 . Reactor . | . . . . . . . . Propulsion 13 | . . . . . 4 9 . Treads 5 | . . . . . 4 1 . Leg 1 | . . . . . . 1 . Wheel 7 | . . . . . . 7 . Hover . | . . . . . . . . Flight . | . . . . . . . . Utility 22 | . 2 . . . 5 10 5 Device 10 | . . . . . 2 6 2 Storage 3 | . 1 . . . . 1 1 Processor 2 | . . . . . 1 . 1 Hackware . | . . . . . . . . Protection 7 | . 1 . . . 2 3 1 Artifact . | . . . . . . . . Weapon 22 | . . . . . 5 15 2 Energy Gun 9 | . . . . . 3 5 1 Energy Cannon 5 | . . . . . . 5 . Ballistic Gun 5 | . . . . . 2 3 . Ballistic Cannon 1 | . . . . . . 1 . Launcher 2 | . . . . . . 1 1 Special Weapon . | . . . . . . . . Impact Weapon . | . . . . . . . . Slashing Weapon . | . . . . . . . . Piercing Weapon . | . . . . . . . . Special Melee Weapon . | . . . . . . . . Unidentified Prototypes 4 | . . . . . . 3 1 Corrupted Parts 1 | . . . . . . 1 . System Corruption 3 | . . . . . . 3 . Parts Lost 19 | . . . . . 5 10 4 Power 3 | . . . . . . 2 1 Propulsion 4 | . . . . . 1 2 1 Utility 4 | . . . . . 2 1 1 Weapon 8 | . . . . . 2 5 1 Highest Loss Streak 4 | . . . . . 2 4 3 To Critical Strikes . | . . . . . . . . Average Slot Usage (%) 90 | . 92 100 100 100 84 88 92 Engine 7 | . 14 14 14 14 9 5 6 Core 4 | . . . . . . 7 6 Treads 7 | . . . . . 11 10 . Leg 6 | . 28 28 28 28 6 . . Wheel 3 | . . . . . . 4 13 Device 12 | . . . . . 6 16 23 Storage 8 | . 14 14 14 14 9 7 6 Protection 6 | . 7 14 14 14 4 4 5 Energy Gun 13 | . 14 14 14 14 15 14 . Energy Cannon 3 | . . . . . . 3 13 Ballistic Gun 10 | . 14 14 14 14 18 7 5 Ballistic Cannon 1 | . . . . . . 1 6 Naked Turns . | . . . . . . . . Heaviest Build 100 | 12 20 20 20 20 29 92 100 Greatest Support 40 | 20 20 20 20 20 40 40 38 Greatest Overweight (x) 19 | . . . . . 2 19 2 Average Overweight (x) 1 | . . . . . . 1 2 Largest Inventory Capacity 20 | . 10 10 10 10 10 20 20 Average Capacity 15 | . 9 10 10 10 10 19 20 Most Carried 20 | . 8 9 10 10 10 20 20 Average Carried 12 | . 6 8 9 10 8 14 19 Final Capacity 20 | 8 10 10 10 10 10 20 20 Final Carried 20 | 6 8 9 10 10 10 20 19 Class Distribution -------------------- 43% | Scavenger-Skirmisher 23% | Scavenger-Tank 18% | Mutant 8% | Skirmisher 5% | Scavenger-Mutant Dominant Class ---------------- Mutant | -10/Materials Mutant | -10/Mines Mutant | -10/Exiles Mutant | -9/Mines Scavenger-Skirmisher | -8/Materials Scavenger-Tank | -7/Factory Scavenger-Skirmisher | -6/Factory Resources | -11 -10 -10 -10 -9 -8 -7 -6 ----------- Run | Jun Mat Min Exi Min Mat Fac Fac Matter Collected 1321 | 200 . 12 . . 339 619 151 Remotely 137 | . . . . . 137 . . Salvage Created 2290 | . . . . . 517 1410 363 Parts 109 | . . . . . 33 67 9 Haulers Intercepted 5 | . . . . . 1 3 1 Recyclers Shooed 7 | . . . . . 1 6 . Parts Field Recycled . | . . . . . . . . Retrieved Matter . | . . . . . . . . Parts Self-Destructed . | . . . . . . . . Prevented . | . . . . . . . . Kills | -11 -10 -10 -10 -9 -8 -7 -6 ------- Run | Jun Mat Min Exi Min Mat Fac Fac Combat Hostiles Destroyed 43 | . . . . . 17 24 2 Melee 1 | . . . . . . 1 . Guns 32 | . . . . . 17 13 2 Cannons 8 | . . . . . . 8 . AOE 2 | . . . . . . 2 . Classes Destroyed 10 | . . . . . 5 5 . Worker 4 | . . . . . . 4 . Builder 2 | . . . . . . 2 . Hauler 5 | . . . . . 1 3 1 Recycler 3 | . . . . . . 2 1 Watcher 1 | . . . . . 1 . . Swarmer 14 | . . . . . 11 3 . Grunt 20 | . . . . . 3 16 1 Brawler 1 | . . . . . . 1 . Sentry 5 | . . . . . 3 1 1 Programmer 3 | . . . . . . 3 . Best Kill Streak 5 | . . . . . 5 5 2 Combat Bots Only 5 | . . . . . 5 3 1 Max Kills in Single Turn 2 | . . . . . 1 2 1 Gunslinging . | . . . . . . . . Exploded 2 | . . . . . . 2 . Melee 1 | . . . . . . 1 . Uniques/NPCs Destroyed . | . . . . . . . . Combat | -11 -10 -10 -10 -9 -8 -7 -6 -------- Run | Jun Mat Min Exi Min Mat Fac Fac Damage Taken 3340 | . . . . . 1031 1841 468 Core 470 | . . . . . 192 235 43 Absorbed by Shields 228 | . . . . . . 228 . Redirected to Shielding 9 | . . . . . 9 . . Core Remaining (%) 82 | 100 . . . 100 65 66 . Volleys Fired 146 | . . . . . 60 74 12 Largest 4 | . . . . . 4 4 4 Hottest 271 | . . . . . 190 271 251 Shots Fired 436 | . . . . . 162 226 48 Gun 346 | . . . . . 162 172 12 Cannon 90 | . . . . . . 54 36 Launcher . | . . . . . . . . Special . | . . . . . . . . Kinetic 192 | . . . . . 95 77 20 Thermal 221 | . . . . . 63 134 24 Explosive . | . . . . . . . . Electromagnetic 23 | . . . . . 4 15 4 Robot Hit Streak 12 | . . . . . 10 11 12 Robot Miss Streak 7 | . . . . . 5 7 1 Penetration Max . | . . . . . . . . Secondary Targets 5 | . . . . . 3 2 . Max Gunslinging Chain 1 | . . . . . 1 1 . Shots Hit Robots 266 | . . . . . 95 136 35 Core Hits 118 | . . . . . 37 71 10 Critical Kills . | . . . . . . . . Critical Parts Destroyed . | . . . . . . . . Critical Strikes 6 | . . . . . 1 4 1 Burn 5 | . . . . . 1 4 . Blast 1 | . . . . . . . 1 Melee Attacks . | . . . . . . . . Impact . | . . . . . . . . Slashing . | . . . . . . . . Piercing . | . . . . . . . . Sneak Attacks . | . . . . . . . . Combat Hostiles . | . . . . . . . . Follow-up Attacks . | . . . . . . . . Damage Inflicted 5122 | . . . . . 1041 3302 779 Guns 3064 | . . . . . 1041 1842 181 Cannons 1361 | . . . . . . 763 598 Explosions 660 | . . . . . . 660 . Melee . | . . . . . . . . Ramming 37 | . . . . . . 37 . Kinetic 1542 | . . . . . 426 847 269 Thermal 2898 | . . . . . 576 1888 434 Explosive 334 | . . . . . . 334 . Electromagnetic 311 | . . . . . 39 196 76 Impact . | . . . . . . . . Slashing . | . . . . . . . . Piercing . | . . . . . . . . Highest Corruption 8 | . . . . . . 8 . Average Corruption 6 | . . . . . . 6 . Corruption Purged . | . . . . . . . . Corruption Blocked . | . . . . . . . . Effects 40 | . . . . . . 40 . Message Errors 7 | . . . . . . 7 . Matter Fused 7 | . . . . . . 7 . Heat Flow Errors 5 | . . . . . . 5 . Energy Discharges 8 | . . . . . . 8 . Parts Rejected 1 | . . . . . . 1 . Data Loss (minor) 5 | . . . . . . 5 . Data Loss (major) 2 | . . . . . . 2 . Misfires 2 | . . . . . . 2 . Alerts 1 | . . . . . . 1 . Weapon Failures 2 | . . . . . . 2 . Overload Shots . | . . . . . . . . Overflow Damage 196 | . . . . . . 182 14 Projectiles 15 | . . . . . . 1 14 Explosions 181 | . . . . . . 181 . Melee . | . . . . . . . . Knockbacks 3 | . . . . . . 3 . Impact . | . . . . . . . . Kinetic 3 | . . . . . . 3 . Secondary . | . . . . . . . . Self-Inflicted Damage 338 | . . . . . . 338 . Shots 6 | . . . . . . 6 . Rammed 5 | . . . . . . 5 . Targets Rammed 6 | . . . . . . 6 . Kicked . | . . . . . . . . Crushed 1 | . . . . . . 1 . Highest Temperature 372 | . . . . . 354 372 102 Average Temperature 108 | . . . . . 133 100 28 Received Heat Transfer 1045 | . . . . . 396 568 81 Effects 11 | . . . . . 9 2 . Shutdowns 2 | . . . . . 1 1 . Energy Bleed 2 | . . . . . 1 1 . Interference 6 | . . . . . 6 . . Short Circuit 1 | . . . . . 1 . . Siege Activations . | . . . . . . . . Robots Corrupted . | . . . . . . . . Combat Hostiles . | . . . . . . . . Parts Fried . | . . . . . . . . Impact Corruptions . | . . . . . . . . Robots Melted . | . . . . . . . . Combat Hostiles . | . . . . . . . . Parts Melted 6 | . . . . . 2 4 . Heat Transferred 5967 | . . . . . 1484 3780 703 Parts Sabotaged . | . . . . . . . . Parts Stolen . | . . . . . . . . Parts Stripped . | . . . . . . . . Power Chain Reactions 1 | . . . . . . 1 . Missiles Intercepted . | . . . . . . . . Alert | -11 -10 -10 -10 -9 -8 -7 -6 ------- Run | Jun Mat Min Exi Min Mat Fac Fac Peak Influence 523 | . 52 19 . . 300 523 320 Initial 256 | . . 19 . . . 58 256 Average 170 | . 16 19 . . 152 195 265 Maximum Alert Level 2 | . . . . . 1 2 1 Low Security (%) 60 | . 100 100 . 100 65 60 2 Level 1 27 | . . . . . 34 18 97 Level 2 12 | . . . . . . 21 . Level 3 . | . . . . . . . . Level 4 . | . . . . . . . . Level 5 . | . . . . . . . . High Security . | . . . . . . . . Max Security . | . . . . . . . . Squads Dispatched 10 | . 1 . . . 1 7 1 Investigation . | . . . . . . . . Extermination 3 | . . . . . . 3 . Reinforcement 7 | . 1 . . . 1 4 1 Assault . | . . . . . . . . Garrison . | . . . . . . . . Intercept . | . . . . . . . . Searches Triggered . | . . . . . . . . Construction Impeded 2 | . . . . . . 2 . Haulers Reinforced 2 | . . . . . . 1 1 Active Scanning Responses . | . . . . . . . . Cargo Convoy Interrupts . | . . . . . . . . Stealth | -11 -10 -10 -10 -9 -8 -7 -6 --------- Run | Jun Mat Min Exi Min Mat Fac Fac Distress Signals 3 | . . . . . 3 . . Communications Jammed . | . . . . . . . . Distress Signals . | . . . . . . . . Times Spotted 66 | . 3 1 . . 20 36 6 Peak Tracking Total 5 | . 3 1 . . 5 5 5 Tactical Retreats 7 | . . 1 . . 4 2 . Traps | -11 -10 -10 -10 -9 -8 -7 -6 ------- Run | Jun Mat Min Exi Min Mat Fac Fac Traps Triggered 3 | . . . . . . 3 . Indirectly . | . . . . . . . . Trap Hack Attempts . | . . . . . . . . Triggered . | . . . . . . . . Disarmed . | . . . . . . . . Reprogrammed . | . . . . . . . . Reused . | . . . . . . . . Traps Extracted . | . . . . . . . . Installed . | . . . . . . . . Triggered . | . . . . . . . . Machines | -11 -10 -10 -10 -9 -8 -7 -6 ---------- Run | Jun Mat Min Exi Min Mat Fac Fac Machines Disabled 13 | . . . . . . 13 . Max in Single Turn 4 | . . . . . . 4 . Machines Repaired . | . . . . . . . . Machines Sabotaged . | . . . . . . . . Overloaded Fab Kills . | . . . . . . . . Hacking | -11 -10 -10 -10 -9 -8 -7 -6 --------- Run | Jun Mat Min Exi Min Mat Fac Fac Machines Accessed 7 | . 1 . 1 . . 2 3 Terminals 3 | . 1 . . . . 2 . Fabricators 2 | . . . . . . . 2 Repair Stations . | . . . . . . . . Recycling Units . | . . . . . . . . Scanalyzers . | . . . . . . . . Garrison Access 1 | . . . . . . . 1 Total Hacks 15 | . 3 . 1 . . 5 6 Successful 5 | . 1 . 1 . . 3 . Failed 10 | . 2 . . . . 2 6 Catastrophic 3 | . 1 . . . . . 2 Database Lockouts . | . . . . . . . . Manual 5 | . . . 1 . . 4 . Terminals 8 | . 3 . . . . 5 . Fabricators 4 | . . . . . . . 4 Repair Stations . | . . . . . . . . Recycling Units . | . . . . . . . . Scanalyzers . | . . . . . . . . Garrison Access 2 | . . . . . . . 2 Terminal Hacks 5 | . 1 . 1 . . 3 . Prototype ID Bank 1 | . . . . . . 1 . Branch Access Points 1 | . 1 . . . . . . Unreport Threat 2 | . . . . . . 2 . EX-Prototype ID Bank 1 | . . . 1 . . . . Fabricator Hacks . | . . . . . . . . Repair Station Hacks . | . . . . . . . . Recycling Unit Hacks . | . . . . . . . . Scanalyzer . | . . . . . . . . Garrison Access Hacks . | . . . . . . . . Unauthorized Hacks . | . . . . . . . . Terminals . | . . . . . . . . Fabricators . | . . . . . . . . Repair Stations . | . . . . . . . . Recycling Units . | . . . . . . . . Scanalyzers . | . . . . . . . . Garrison Access . | . . . . . . . . Data Cores Recovered . | . . . . . . . . Used . | . . . . . . . . Hacking Detections 6 | . 1 . . . . 2 3 Full Trace Events 1 | . 1 . . . . . . Feedback Events . | . . . . . . . . Feedback Blocked . | . . . . . . . . Robot Schematics Acquired . | . . . . . . . . Robots Built . | . . . . . . . . Authchips . | . . . . . . . . Time . | . . . . . . . . Total Robot Build Rating . | . . . . . . . . Part Schematics Acquired . | . . . . . . . . Parts Built . | . . . . . . . . Authchips . | . . . . . . . . Time . | . . . . . . . . Total Part Build Rating . | . . . . . . . . Parts Repaired . | . . . . . . . . Time . | . . . . . . . . Parts Recycled . | . . . . . . . . Recycled Matter . | . . . . . . . . Retrieved Matter . | . . . . . . . . Retrieved Components . | . . . . . . . . Parts Scanalyzed . | . . . . . . . . Part Schematics Acquired . | . . . . . . . . Parts Damaged . | . . . . . . . . Bothacking | -11 -10 -10 -10 -9 -8 -7 -6 ------------ Run | Jun Mat Min Exi Min Mat Fac Fac Used RIF Installer . | . . . . . . . . Robots Hacked . | . . . . . . . . Non-combat . | . . . . . . . . Combat . | . . . . . . . . Robot Hacks Applied . | . . . . . . . . Relay Couplers Released . | . . . . . . . . Fabnet Peak Effective % . | . . . . . . . . Robots Rewired . | . . . . . . . . Allies Hacked . | . . . . . . . . Hacks Repelled . | . . . . . . . . Allies | -11 -10 -10 -10 -9 -8 -7 -6 -------- Run | Jun Mat Min Exi Min Mat Fac Fac Total Allies 3 | . . . . 3 . . . Largest Group 3 | . . . . 3 3 . . Highest-Rated Group 40 | . . . . 40 40 . . Highest-Rated Ally 16 | . . . . 16 16 . . Total Orders . | . . . . . . . . Ally Attacks 10 | . . . . . 10 . . Total Damage 100 | . . . . . 100 . . Kills 1 | . . . . . 1 . . Allies Corrupted . | . . . . . . . . Allies Melted . | . . . . . . . . Intel | -11 -10 -10 -10 -9 -8 -7 -6 ------- Run | Jun Mat Min Exi Min Mat Fac Fac Robot Analysis Total . | . . . . . . . . Derelict Logs Recovered . | . . . . . . . . Drone Launches . | . . . . . . . . Drone Recoveries . | . . . . . . . . Exploration | -11 -10 -10 -10 -9 -8 -7 -6 ------------- Run | Jun Mat Min Exi Min Mat Fac Fac Turns Passed 4413 | . 102 279 258 142 834 2389 409 Spaces Moved 2212 | 1 81 213 215 113 305 1019 265 Core 4 | . . . . . . 4 . Treads 789 | . . . . . 209 580 . Legs 729 | 1 81 213 215 113 96 10 . Wheels 690 | . . . . . . 425 265 Hover . | . . . . . . . . Flight . | . . . . . . . . Fastest Speed 110 | 120 120 120 120 120 160 110 120 Average Speed 162 | 120 120 120 120 120 191 189 120 Slowest Speed 1000 | 120 120 120 120 120 260 1000 120 Overloaded Moves . | . . . . . . . . Propulsion Burnouts . | . . . . . . . . Robots Hopped . | . . . . . . . . Cave-ins Triggered 1 | . . . . . . 1 . Exploration Rate (%) 29 | 2 22 44 61 39 23 35 7 Regions Visited 7 Branch Regions 3 Pre-discovered Areas 1 | . . 1 . . . . . Known Exits Taken 2 | . 1 . . . 1 . . Unknown Exits Taken 5 | 1 . 1 1 1 . 1 . Scrap Searched 1 | . . 1 . . . . . Spaces Dug 3 | . . . . . . 3 . Terrain Destroyed 53 | . . . . . . 51 2 Melee . | . . . . . . . . Projectile 8 | . . . . . . 6 2 AOE 45 | . . . . . . 45 . Terrain Rammed . | . . . . . . . . Walls Destroyed . | . . . . . . . . Machines Disabled . | . . . . . . . . Actions | -11 -10 -10 -10 -9 -8 -7 -6 --------- Run | Jun Mat Min Exi Min Mat Fac Fac Total 2728 | . 86 236 215 119 442 1302 328 Wait 233 | . . 23 . 7 50 122 31 Move 2205 | . 80 212 214 112 304 1018 265 Hop . | . . . . . . . . Pick Up 39 | . 3 1 1 . 5 23 6 Fast Attach 28 | . 1 . . . 8 17 2 Attach 17 | . 1 . . . 3 10 3 Detach 1 | . . . . . . 1 . Swap 19 | . . . . . 5 11 3 Drop 32 | . 1 . . . 7 18 6 Fire 146 | . . . . . 60 74 12 Melee . | . . . . . . . . Ram . | . . . . . . . . Kick . | . . . . . . . . Crush 6 | . . . . . . 6 . Escape Stasis 2 | . . . . . . 2 . Rewire . | . . . . . . . . Trap . | . . . . . . . . Miscellaneous . | . . . . . . . . Route ------- -11/Junkyard -10/Materials (discovered 2 exits: *Min x2) -10/Mines (discovered 2 exits: [*Mat] / *Exi) -10/Exiles (discovered 2 exits: [*Min x2]) -9/Mines -8/Materials -7/Factory -6/Factory History --------- Turn | Location | Event 1 | -11/Junkyard | Discovered new exit (range 0) 1 | -11/Junkyard | Entered Materials 62 | -10/Materials | Identified exit to Mines 103 | -10/Materials | Entered Mines 117 | -10/Mines | Discovered new exit (range 16) 139 | -10/Mines | Assembled infested the area 144 | -10/Mines | Assisted by a Guerilla fighting off Assembled 270 | -10/Mines | Learned location of Storage (-7) 306 | -10/Mines | Build established: Mutant 376 | -10/Mines | Deemed a non-threat by the Exiles lab entrance 377 | -10/Mines | Discovered new exit (range 5) 382 | -10/Mines | Entered Exiles 398 | -10/Exiles | Discovered new exit (range 15) 412 | -10/Exiles | Met 8R-AWN 433 | -10/Exiles | Met EX-HEX 471 | -10/Exiles | Met EX-BIN 486 | -10/Exiles | Aligned with FarCom system 487 | -10/Exiles | Given EX-Vault access code 518 | -10/Exiles | Opened EX-Vault 526 | -10/Exiles | Found Cloak of Protection 550 | -10/Exiles | Warned to stay clear of 0b10 Research branches 586 | -10/Exiles | Met EX-DEC 627 | -10/Exiles | Discovered new exit (range 12) 640 | -10/Exiles | Left Exiles lab with Cloak of Protection 640 | -10/Exiles | Entered Mines 672 | -9/Mines | Met a Derelict bent on vengeance 753 | -9/Mines | Discovered new exit (range 14) 775 | -9/Mines | Assisted by bots powering up and referring to "LRC-V3" 782 | -9/Mines | Entered Materials 782 | -8/Materials | Accompanied by 3 allies 782 | -8/Materials | Evolved 4 slots: Utility x2, Weapon x2 1588 | -8/Materials | Build established: Scavenger-Skirmisher 1600 | -8/Materials | Discovered new exit (range 4) 1614 | -8/Materials | Identified exit to Factory 1616 | -8/Materials | Entered Factory 1616 | -7/Factory | Evolved 2 slots: Power x1, Propulsion x1 1909 | -7/Factory | Build established: Scavenger-Tank 2942 | -7/Factory | Build established: Scavenger-Skirmisher 2996 | -7/Factory | Crushed by falling debris 3316 | -7/Factory | Lost 4 parts (1p2n1w) 3982 | -7/Factory | Discovered new exit (range 9) 4005 | -7/Factory | Entered another Factory area 4005 | -6/Factory | Evolved 2 slots: Utility x2 4355 | -6/Factory | Found Prototype Launcher 4355 | -6/Factory | Identified Rocket Array 4358 | -6/Factory | Found Rocket Array 4414 | -6/Factory | Self-destructed Last Messages --------------- 04355_ Identified Rocket Array. 04355_ Malfunction: Meltdown. 04355_ Enh. Nuclear Core damaged (-19). 04355_ Adv. Heat Sink damaged (-2). 04358_ Acquired Rocket Array. 04359_ R-10 Processor collects Prototype Ballistic Gun. 04360_ U-05 Engineer builds a Wall. 04361_ K-01 Serf cleans the Assembly Bed. 04362_ R-10 Processor collects Autogun. 04364_ K-01 Serf cleans the Assembly Bed. 04366_ R-10 Processor collects Med. Treads. 04370_ K-01 Serf cleans the Assembly Bed. 04370_ R-10 Processor collects Faulty Rocket Array. 04403_ G-50 Soldier destroyed. 04406_ G-50 Soldier Adv. Heat Sink blasted off. 04409_ Imp. Medium Armor Plating destroyed. 04410_ Destroyed Lgt. Angular Momentum Engine. 04411_ G-50 Soldier heat short circuits Hvy. Laser. 04411_ Wheel destroyed. 04412_ Enh. Nuclear Core destroyed. Map ----- +----------------------------------------------------+ | ?????????????????????????????????????????????????? | | ?????????????????????????????????????????????????? | | ?????????????????????????????????????????????????? | | ?????????????????????????????????????????????????? | | ?????????????????????????????????????????????????? | | ?????????????????????????????????????????????????? | | ?????????????????????????????????????????????????? | | ?????????????????????????????????????????????????? | | ?????????????????????????????????????????????????? | | ?????????????????????????????????????????????????? | | ?????????????????????????????????????????????????? | | ?????????????????????????????????????????????????? | | ?????????????????????????????????????????????????? | | ?????????????????????????????????????????????????? | | ??????????????????Y??????????????????????????????? | | ?????????????????????????????????????????????????? | | ?????????????????????????????????????????????????? | | ?#####+#######???????????????????????????????????? | | ? #??? ?????????????????????????????? | | ??? #??# #??#+????????????????????????? | | ???"""""" #??# #??# ????????????????????????? | | ???"""""" #??# #??#g????????????????????????? | | ? """"""" #??# #??# ????????????????????????? | | # """"""" #??# #??#%??????? ???????????????? | | # #??# ####%### """ "???????????????? | | # """"""" #??# ^ !@ s """ ""??????????????? | | # """"""" #??# # """ """?????????????? | | # """"""" #??# """""" #?? ??????????????? | | # """"""" #??# """""" s# """ ""??????????????? | | # #??#^ """""" s/ """ ""??????????????? | | ######+#######??# """""" # """ ""??????????????? | | ?????# #???????## #?? ??????????????? | | ####?# ########## #???? ????????????? | | "" ### []]]%] #?????? ???????????? | | "" #?# #############"F ""###???????? ???????????? | | "" #?# #???????????#"""""#???????????????????????? | | #?# #???????????#"""""#???????????????????????? | | #?# #???????????#######???????????????????????? | | #?# #?????????????????????????????????????????? | | ###### ###???????????????????????????????????????? | | #### ! #???????????????????????????????????????? | | #???????????????????????????????????????? | | #???????????????????????????????????????? | | #???????????????????????????????????????? | | #### #???????????????????????????????????????? | | ???#######???????????????????????????????????????? | | ####?????????????????????????????????????????????? | | ??????????????????????????????????????????????? | | ?????????????????????????????????????????????????? | | ?????????????????????????????????????????????????? | +----------------------------------------------------+ Best States ------------- Heat Dissipation 89 Energy Generation 28 Energy Capacity 490 Matter Stores 300 Matter Capacity 300 Sight Range 16 Terrain Scan Density 10 Cloak Strength 5 Armor Coverage 225 Propulsion Shielding 66 Evasion (%) 55 Recoil Reduction 2 Item Schematics ----------------- None Robot Schematics ------------------ None Fabricated ------------ Nothing Alien Tech Used ----------------- None Achievements -------------- None Challenges ------------ None Game ------ Seed MetafieldOpticalBroadsword Manual? 0 Play Time 00:30:14 Cumulative 66.5 hours Start 2023.07.28 @ 22:19:56 End 2023.07.28 @ 22:46:30 Sessions 1 Manual Loads 0 Difficulty Rogue Special Mode None Game No. 76 Rogue 76 Adventurer 0 Explorer 0 Win Type - Total 0 Types 0/0/0/0/0/0/0/0/0 Lore% 41 Gallery% 54 Achievement% 49 Wizard Run 0 Options --------- ASCII 0 Keyboard 0 Movement Mouse Keybinds 0 Fullscreen 1 Font 18/TerminusBold Map View 76x50 Tactical HUD 1 Map Filters NONE Filters NONE Steam 1 RUN: c9a7955a-1131-4adf-ba89-3ab7e336c168